[Event "UKR-ch Semifinal 2018"]
[Site "Omelnyk"]
[Date "2018.10.30"]
[Round "5.6"]
[White "Kutsanyan, Andranik"]
[Black "Bakhmatsky, Vladislav"]
[Result "1/2-1/2"]
[WhiteElo "2252"]
[BlackElo "2409"]
[PlyCount "60"]
[EventDate "2018.11.26"]
[EventType "tourn"]
[EventCountry "UKR"]
[TimeControl "40/5400+30:1800+30"]
[WhiteClock "0:01:45"]
[BlackClock "0:07:22"]

1. e4 {[%emt 0:00:00]} c5 {[%emt 0:02:22]} 2. b3 {[%emt 0:00:00]} g6 {[%emt 0:01:34]} 3. Bb2 {[%emt 0:00:24]} Nf6 {[%emt 0:00:04]} 4. e5 {[%emt 0:05:32]} Nd5 {[%emt 0:00:02]} 5. Nc3 {[%emt 0:00:25]} Nxc3 {[%emt 0:00:47]} 6. Bxc3 {[%emt 0:00:07]} Bg7 {[%emt 0:01:50]} 7. Bc4 {[%emt 0:07:30]} Nc6 {[%emt 0:11:29]} 8. e6 {[%emt 0:06:19]} f6 {[%emt 0:00:14]} 9. exd7+ {[%emt 0:00:22]} Bxd7 {[%emt 0:00:52]} 10. Qf3 {[%emt 0:05:21]} e5 {[%emt 0:02:19]} 11. O-O-O {[%emt 0:03:28]} Qe7 {[%emt 0:01:21]} 12. Ne2 {[%emt 0:02:14]} O-O-O {[%emt 0:06:38]} 13. Rhe1 {[%emt 0:05:24]} Rhe8 {[%emt 0:26:25]} 14. Kb1 {[%emt 0:24:10]} Qf8 {[%emt 0:05:55]} 15. Qg3 {[%emt 0:04:24]} g5 {[%emt 0:10:12]} 16. f3 {[%emt 0:07:55]} h6 {[%emt 0:03:11]} 17. h4 {[%emt 0:01:19]} Nd4 {[%emt 0:02:34]} 18. hxg5 {[%emt 0:04:17]} hxg5 {[%emt 0:00:26]} 19. Nxd4 {[%emt 0:02:24]} cxd4 {[%emt 0:00:17]} 20. Bb2 {[%emt 0:00:15]} Qd6 {[%emt 0:04:26]} 21. Bd3 {[%emt 0:03:07]} Kb8 {[%emt 0:05:24]} 22. c3 {[%emt 0:01:04]} dxc3 {[%emt 0:00:01]} 23. dxc3 {[%emt 0:00:06]} Qc7 {[%emt 0:00:09]} 24. c4 {[%emt 0:00:42]} Bc8 {[%emt 0:01:35]} 25. Bg6 {[%emt 0:03:26]} Re6 {[%emt 0:02:22]} 26. Qf2 {[%emt 0:02:12]} Bf8 {[%emt 0:02:40]} 27. Qc2 {[%emt 0:01:37]} Red6 {[%emt 0:01:05]} 28. Be4 {[%emt 0:01:31]} Be6 {[%emt 0:01:41]} 29. g4 {[%emt 0:01:46]} Qa5 {[%emt 0:02:49]} 30. Bc3 {[%emt 0:00:17]} Qc7 {[%emt 0:02:31]} 1/2-1/2

[Event "UKR-ch Semifinal 2018"]
[Site "Omelnyk"]
[Date "2018.10.30"]
[Round "5.7"]
[White "Borsuk, Konstantin"]
[Black "Lisnyak, Vladislav"]
[Result "1-0"]
[WhiteElo "2354"]
[BlackElo "2263"]
[PlyCount "205"]
[EventDate "2018.11.26"]
[EventType "tourn"]
[EventCountry "UKR"]
[TimeControl "40/5400+30:1800+30"]
[WhiteClock "0:03:17"]
[BlackClock "0:01:38"]

1. d4 {[%emt 0:00:00]} Nf6 {[%emt 0:00:00]} 2. c4 {[%emt 0:00:10]} e6 {[%emt 0:00:00]} 3. Nc3 {[%emt 0:00:07]} Bb4 {[%emt 0:00:00]} 4. e3 {[%emt 0:02:48]} O-O {[%emt 0:00:00]} 5. Nge2 {[%emt 0:00:24]} d5 {[%emt 0:00:06]} 6. a3 {[%emt 0:02:23]} Bd6 {[%emt 0:00:25]} 7. cxd5 {[%emt 0:05:47]} Nxd5 {[%emt 0:15:53]} 8. g3 {[%emt 0:10:41]} Nd7 {[%emt 0:18:31]} 9. Bg2 {[%emt 0:03:32]} N7b6 {[%emt 0:03:18]} 10. O-O {[%emt 0:05:39]} Nxc3 {[%emt 0:03:44]} 11. Nxc3 {[%emt 0:08:09]} e5 {[%emt 0:01:25]} 12. Nb5 {[%emt 0:11:14]} exd4 {[%emt 0:03:10]} 13. Qxd4 {[%emt 0:00:42]} Be7 {[%emt 0:04:05]} 14. Qxd8 {[%emt 0:05:38]} Bxd8 {[%emt 0:00:15]} 15. Bd2 {[%emt 0:01:06]} c6 {[%emt 0:09:31]} 16. Nd6 {[%emt 0:06:27]} Bf6 {[%emt 0:12:26]} 17. Bc3 {[%emt 0:06:56]} Bxc3 {[%emt 0:03:46]} 18. bxc3 {[%emt 0:00:04]} Rd8 {[%emt 0:00:07]} 19. Rfd1 {[%emt 0:01:00]} Kf8 {[%emt 0:00:57]} 20. Rd4 {[%emt 0:02:50]} Ke7 {[%emt 0:05:44]} 21. Ne4 {[%emt 0:05:22]} Nd5 {[%emt 0:04:12]} 22. c4 {[%emt 0:01:02]} Nf6 {[%emt 0:07:48]} 23. Nc5 {[%emt 0:06:18]} Rb8 {[%emt 0:00:18]} 24. Rad1 {[%emt 0:03:57]} Be6 {[%emt 0:00:22]} 25. Rxd8 {[%emt 0:03:26]} Rxd8 {[%emt 0:00:03]} 26. Rb1 {[%emt 0:02:53]} Bxc4 {[%emt 0:03:09]} 27. Nxb7 {[%emt 0:01:22]} Rc8 {[%emt 0:02:59]} 28. Na5 {[%emt 0:03:08]} Bb5 {[%emt 0:00:05]} 29. e4 {[%emt 0:00:28]} Nd7 {[%emt 0:00:53]} 30. f4 {[%emt 0:00:11]} a6 {[%emt 0:00:28]} 31. Kf2 {[%emt 0:00:42]} Nb6 {[%emt 0:00:24]} 32. Rc1 {[%emt 0:00:24]} f6 {[%emt 0:01:03]} 33. Bh3 {[%emt 0:01:01]} Rc7 {[%emt 0:00:08]} 34. e5 {[%emt 0:00:25]} fxe5 {[%emt 0:00:19]} 35. fxe5 {[%emt 0:00:15]} c5 {[%emt 0:00:36]} 36. Nb3 {[%emt 0:00:19]} Bc4 {[%emt 0:00:28]} 37. Nd2 {[%emt 0:00:15]} Bd5 {[%emt 0:00:19]} 38. Ke3 {[%emt 0:00:21]} Rc6 {[%emt 0:00:41]} 39. Bf5 {[%emt 0:00:54]} g6 {[%emt 0:00:48]} 40. Bg4 {[%emt 0:00:00]} h5 {[%emt 0:00:00]} 41. Bf3 {[%emt 0:04:52]} Ke6 {[%emt 0:04:36]} 42. Kf4 {[%emt 0:07:22]} Rc8 {[%emt 0:09:07]} 43. Bxd5+ {[%emt 0:02:48]} Nxd5+ {[%emt 0:15:33]} 44. Ke4 {[%emt 0:00:12]} Nb6 {[%emt 0:00:22]} 45. Nf3 {[%emt 0:03:56]} c4 {[%emt 0:00:29]} 46. Nd4+ {[%emt 0:00:59]} Ke7 {[%emt 0:00:25]} 47. h4 {[%emt 0:02:11]} Rc5 {[%emt 0:01:42]} 48. Nf3 {[%emt 0:02:40]} Rb5 {[%emt 0:02:23]} 49. Ng5 {[%emt 0:00:37]} Nd7 {[%emt 0:00:41]} 50. Rxc4 {[%emt 0:04:37]} Rxe5+ {[%emt 0:00:02]} 51. Kd4 {[%emt 0:00:26]} Ra5 {[%emt 0:00:02]} 52. Rc3 {[%emt 0:03:21]} Ra4+ {[%emt 0:00:17]} 53. Kd5 {[%emt 0:01:06]} Nb6+ {[%emt 0:00:25]} 54. Kc5 {[%emt 0:01:05]} Nd7+ {[%emt 0:00:06]} 55. Kc6 {[%emt 0:00:37]} Ne5+ {[%emt 0:01:50]} 56. Kd5 {[%emt 0:00:17]} Ra5+ {[%emt 0:00:28]} 57. Ke4 {[%emt 0:01:56]} Nd7 {[%emt 0:00:13]} 58. Kd4 {[%emt 0:00:41]} Ra4+ {[%emt 0:00:38]} 59. Kd5 {[%emt 0:00:03]} Nb6+ {[%emt 0:00:32]} 60. Kc5 {[%emt 0:00:02]} Nd7+ {[%emt 0:00:11]} 61. Kc6 {[%emt 0:00:11]} Ne5+ {[%emt 0:00:03]} 62. Kd5 {[%emt 0:00:35]} Nd7 {[%emt 0:00:07]} 63. Re3+ {[%emt 0:00:10]} Kf6 {[%emt 0:01:02]} 64. Rf3+ {[%emt 0:00:23]} Ke7 {[%emt 0:00:04]} 65. Rf7+ {[%emt 0:00:38]} Ke8 {[%emt 0:00:07]} 66. Rf3 {[%emt 0:01:12]} Ke7 {[%emt 0:00:18]} 67. Re3+ {[%emt 0:00:43]} Kf6 {[%emt 0:00:01]} 68. Ne4+ {[%emt 0:00:10]} Kg7 {[%emt 0:01:35]} 69. Nd6 {[%emt 0:01:14]} Ra5+ {[%emt 0:02:00]} 70. Ke6 {[%emt 0:00:27]} Nf6 {[%emt 0:00:06]} 71. Rb3 {[%emt 0:00:33]} Ng4 {[%emt 0:00:41]} 72. Rb7+ {[%emt 0:00:18]} Kg8 {[%emt 0:00:46]} 73. Rb8+ {[%emt 0:00:04]} Kg7 {[%emt 0:00:03]} 74. Rb7+ {[%emt 0:00:04]} Kg8 {[%emt 0:00:05]} 75. Rb8+ {[%emt 0:01:33]} Kg7 {[%emt 0:00:02]} 76. Ne8+ {[%emt 0:00:51]} Kh6 {[%emt 0:01:23]} 77. Kf7 {[%emt 0:00:21]} Kh7 {[%emt 0:00:48]} 78. Rb7 {[%emt 0:00:35]} Rf5+ {[%emt 0:00:17]} 79. Ke6+ {[%emt 0:00:16]} Kh6 {[%emt 0:00:39]} 80. Nd6 {[%emt 0:00:21]} Rf6+ {[%emt 0:00:43]} 81. Kd5 {[%emt 0:01:06]} Ne3+ {[%emt 0:00:35]} 82. Kc5 {[%emt 0:00:11]} Nf5 {[%emt 0:00:22]} 83. Ne4 {[%emt 0:00:28]} Re6 {[%emt 0:00:22]} 84. Ng5 {[%emt 0:00:13]} Re7 {[%emt 0:00:49]} 85. Rxe7 {[%emt 0:00:24]} Nxe7 {[%emt 0:00:01]} 86. Kb6 {[%emt 0:00:32]} Kg7 {[%emt 0:00:22]} 87. Kxa6 {[%emt 0:00:40]} Kf6 {[%emt 0:00:00]} 88. Kb7 {[%emt 0:00:50]} Nd5 {[%emt 0:00:34]} 89. a4 {[%emt 0:00:21]} Kf5 {[%emt 0:00:53]} 90. a5 {[%emt 0:00:15]} Nb4 {[%emt 0:00:04]} 91. Nh3 {[%emt 0:01:02]} Kg4 {[%emt 0:00:09]} 92. Nf4 {[%emt 0:00:05]} Kxg3 {[%emt 0:00:07]} 93. Nxg6 {[%emt 0:00:28]} Kg4 {[%emt 0:00:00]} 94. Kb6 {[%emt 0:00:45]} Nd5+ {[%emt 0:00:55]} 95. Kc6 {[%emt 0:00:37]} Nb4+ {[%emt 0:00:12]} 96. Kb5 {[%emt 0:00:38]} Nd5 {[%emt 0:00:09]} 97. Kc5 {[%emt 0:00:21]} Nc7 {[%emt 0:00:06]} 98. Kc6 {[%emt 0:00:27]} Na6 {[%emt 0:00:07]} 99. Kb6 {[%emt 0:00:32]} Nb4 {[%emt 0:00:13]} 100. Ne7 {[%emt 0:00:35]} Kxh4 {[%emt 0:00:14]} 101. Kb5 {[%emt 0:00:11]} Nc2 {[%emt 0:01:45]} 102. a6 {[%emt 0:00:12]} Nd4+ {[%emt 0:00:26]} 103. Kb6 {[%emt 0:00:12]} 1-0